fUSD/lending_fUSD_20250929
["ID","MTS","AMOUNT","RATE_DAILY","PERIOD"]
[388426866,1759165078863,5514.0,0.000166,5]
[388426885,1759165121719,178.69,0.00016127,2]
[388426887,1759165173816,167.36,0.00012902,2]
[388426888,1759165184953,190.5,0.00016256,2]
[388426906,1759165291330,150.0,0.00016078,7]
[388426908,1759165303923,221.62220147,0.000166,2]
[388426923,1759165400481,1309.38,0.00016106,2]
[388427187,1759165553587,25000.0,0.00015,2]
[388427200,1759165682653,10000.0,0.00015,2]
[388427203,1759165709194,168.37,8.009e-05,2]
[388427204,1759165709641,168.37,0.00012013,2]
[388427205,1759165709855,168.37,0.00016017,2]
[388427206,1759165712613,200.0,0.00016251,2]
[388427210,1759165812490,515.46,0.00016302,3]
[388427327,1759165832276,-413.921,0.00016648,2]
[388427328,1759165832329,-796.319,0.00016648,2]
[388427329,1759165832340,-517.26,0.00016649,2]
[388427330,1759165832351,-165.12,0.00016712,2]
[388427331,1759165832362,-704.03801051,0.00016715,2]
[388427332,1759165832384,-143.59062349,0.00016715,2]
[388427333,1759165832395,-550.0,0.00016798,2]
[388427334,1759165832406,-300.0,0.00016798,2]
[388427335,1759165832416,-300.0,0.00016798,2]
[388427336,1759165832427,-1200.0,0.00016798,2]
[388427337,1759165832437,-506.40937651,0.00016799,2]
[388427338,1759165832450,-238.59062349,0.00016799,2]
[388427339,1759165832461,-344.42855682,0.00016799,2]
[388427340,1759165832471,-15.50082369,0.00016799,2]
[388427341,1759165832484,-484.49917631,0.00016799,2]
[388427343,1759165832494,-500.0,0.00016799,2]
[388427345,1759165832504,-138.76331317,0.00016799,2]
[388427347,1759165832522,-361.23668683,0.00016799,2]
[388427348,1759165832532,-500.0,0.00016799,2]
[388427349,1759165832542,-500.0,0.00016799,2]
[388427351,1759165832553,-500.0,0.00016799,2]
[388427353,1759165832564,-500.0,0.00016799,2]
[388427355,1759165832574,-400.0,0.00016799,2]
[388427357,1759165832585,-500.0,0.00016799,2]
[388427359,1759165832595,-500.0,0.00016799,2]
[388427361,1759165832607,-500.0,0.00016799,2]
[388427363,1759165832617,-1251.0211,0.000168,2]
[388427365,1759165832627,-1000.0,0.000168,2]
[388427368,1759165832638,-999.99,0.000168,2]
[388427371,1759165832648,-150.99,0.000168,2]
[388427374,1759165832658,-7663.57,0.000168,2]
[388427378,1759165832668,-299.99,0.000168,4]
[388427383,1759165832686,-7155.27991741,0.000168,2]
[388427387,1759165832699,-697.52122527,0.000168,2]
[388427391,1759165832711,-608.24647079,0.000168,2]
[388427674,1759165840472,-2693.72560857,0.000168,2]
[388427676,1759165840485,-12279.47677796,0.000168,2]
[388427678,1759165840495,-1629.36358,0.0001683,2]
[388427680,1759165840507,-1629.36359,0.0001683,2]
[388427682,1759165840516,-598.19278596,0.000169,2]
[388427685,1759165840528,-1848.4151782,0.000169,2]
[388427687,1759165840539,-2500.0,0.000169,2]
[388427689,1759165840549,-55.24293538,0.00016971,2]
[388427711,1759165840761,-832.26500243,0.00016971,2]
[388427713,1759165840772,-518.99449017,0.00016973,2]
[388427715,1759165840785,-330.87291549,0.00016973,2]
[388427718,1759165840802,-169.12708451,0.00016973,2]
[388427720,1759165840811,-315.23909179,0.00016973,2]
[388427723,1759165840835,-208.24098405,0.00016973,2]
[388427725,1759165840846,-500.0,0.00016973,2]
[388427727,1759165840859,-500.0,0.00016973,2]
[388427729,1759165840868,-500.0,0.00016973,2]
[388427731,1759165840878,-500.0,0.00016973,2]
[388427734,1759165840888,-500.0,0.00016973,2]
[388427736,1759165840898,-293.23269247,0.00016973,2]
[388427738,1759165840907,-500.0,0.00016973,2]
[388427740,1759165840917,-500.0,0.00016973,2]
[388427742,1759165840928,-73.6133733,0.00016973,2]
[388427745,1759165840951,-426.3866267,0.00016973,2]
[388427747,1759165840961,-51.41561579,0.00016973,2]
[388427750,1759165840973,-448.58438421,0.00016973,2]
[388427752,1759165840983,-500.0,0.00016973,2]
[388427754,1759165840992,-51.41561576,0.00016973,2]
[388427756,1759165841008,-448.58438424,0.00016973,2]
[388427759,1759165841018,-386.86061577,0.00016973,2]
[388427763,1759165841051,-113.13938423,0.00016973,2]
[388427765,1759165841063,-214.86061556,0.00016973,2]
[388427768,1759165841077,-285.13938444,0.00016973,2]
[388427770,1759165841087,-407.6299967,0.00016973,2]
[388427772,1759165841098,-114.27194223,0.00016973,2]
[388428003,1759165843317,-386.73132492,0.00016973,2]
[388428005,1759165843327,-3378.53,0.00016973,2]
[388428008,1759165843345,-200.0,0.0001699,2]
[388428010,1759165843356,-500.0,0.0001699,2]
[388428012,1759165843367,-500.0,0.0001699,2]
[388428014,1759165843377,-500.0,0.0001699,2]
[388428016,1759165843389,-500.0,0.0001699,2]
[388428018,1759165843399,-500.0,0.0001699,2]
[388428020,1759165843410,-500.0,0.0001699,2]
[388428022,1759165843420,-500.0,0.0001699,2]
[388428024,1759165843431,-500.0,0.0001699,2]
[388428027,1759165843442,-500.0,0.0001699,2]
[388428029,1759165843453,-151.0,0.0001699,2]
[388428031,1759165843463,-151.0,0.0001699,2]
[388428033,1759165843475,-151.0,0.0001699,2]
[388428035,1759165843486,-151.0,0.0001699,2]
[388428037,1759165843496,-151.0,0.0001699,2]
[388428039,1759165843507,-200.0,0.0001699,2]
[388428041,1759165843517,-151.0,0.0001699,2]
[388428043,1759165843527,-151.0,0.0001699,2]
[388428045,1759165843538,-151.0,0.0001699,2]
[388428047,1759165843549,-151.0,0.0001699,2]
[388428049,1759165843559,-500.0,0.0001699,2]
[388428052,1759165843570,-151.0,0.0001699,2]
[388428054,1759165843580,-247.34819929,0.0001699,2]
[388428056,1759165843591,-151.0,0.0001699,2]
[388428058,1759165843602,-151.0,0.0001699,2]
[388428060,1759165843612,-151.0,0.0001699,2]
[388428062,1759165843623,-151.0,0.0001699,2]
[388428064,1759165843634,-151.0,0.0001699,2]
[388428066,1759165843645,-151.0,0.0001699,2]
[388428068,1759165843655,-151.0,0.0001699,2]
[388428070,1759165843666,-151.0,0.0001699,2]
[388428072,1759165843676,-151.0,0.0001699,2]
[388428076,1759165843687,-151.0,0.0001699,2]
[388428079,1759165843698,-576.82,0.0001699,2]
[388428081,1759165843709,-205.04025854,0.00016999,2]
[388428083,1759165843719,-262.59610634,0.00016999,2]
[388428086,1759165843736,-646.99590215,0.00016999,2]
[388428088,1759165843747,-152.8971315,0.00016999,2]
[388428090,1759165843757,-151.0,0.00017,2]
[388428093,1759165843769,-516.84647691,0.00017,2]
[388428351,1759165846478,-891.891,0.00017,2]
[388428357,1759165846534,-719.1499998,0.00017,2]
[388428360,1759165846547,-618.60953559,0.00017,2]
[388428362,1759165846558,-420.29046441,0.00017,2]
[388428364,1759165846571,-5001.63487209,0.00017,2]
[388428366,1759165846582,-200.0,0.00017,2]
[388428369,1759165846593,-250.0,0.00017,2]
[388428371,1759165846604,-17658.36512791,0.00017,2]
[388428376,1759165846640,-1527.47754312,0.00017,2]
[388428378,1759165846654,-4273.10879762,0.00017,2]
[388428604,1759165949430,1000.0,0.00016457,2]
[388428672,1759165985981,250.0,0.00016449,2]
[388428743,1759166045929,288.99,0.00016385,2]
[388428852,1759166146133,484.69,0.00016397,2]
[388428903,1759166177322,150.0,0.00016388,7]
[388428904,1759166182206,300.0,0.00016396,2]
[388429229,1759166416637,942.96,0.00016477,2]
[388429286,1759166483830,198.56984466,0.00016562,2]
[388429301,1759166507346,631.3399551,0.0001615,2]
[388429370,1759166591607,190.46,0.00016084,2]
[388429376,1759166622074,196.6732644,0.0001615,2]
[388429380,1759166635840,200.0,0.00016109,2]
[388429390,1759166688916,430.63,0.00016224,2]
[388429399,1759166719773,2909.46877292,9e-05,2]
[388429413,1759166759355,150.75,8.033e-05,2]
[388429414,1759166759807,150.75,0.00016067,2]
[388429430,1759166830785,3607.2402191,0.00015,2]
[388429632,1759166911652,2699.40953542,0.0001,2]
[388429633,1759166913630,1000.0,0.00016438,2]
[388429718,1759166972750,169.62,0.00016461,2]
[388429747,1759167000153,7025.33,0.00016092,2]
[388429820,1759167031430,-221.62220147,0.00016622,2]
[388429821,1759167031442,-1200.0,0.00016643,2]
[388429822,1759167031452,-150.0,0.00016644,2]
[388429823,1759167031463,-150.0,0.00016644,2]
[388429824,1759167031474,-150.0,0.00016644,2]
[388429825,1759167031484,-150.0,0.00016644,2]
[388429826,1759167031495,-150.0,0.00016644,2]
[388429827,1759167031505,-150.0,0.00016644,2]
[388429828,1759167031515,-150.0,0.00016644,2]
[388429829,1759167031525,-150.00000001,0.00016644,2]
[388429830,1759167031536,-266.0,0.00016662,2]
[388429831,1759167031546,-300.0,0.00016662,2]
[388429832,1759167031556,-300.0,0.00016663,2]
[388429833,1759167031567,-195.0,0.00016664,2]
[388429834,1759167031577,-195.0,0.00016683,2]
[388429835,1759167031587,-456.57772426,0.000167,2]
[388429836,1759167031597,-195.0,0.00016721,2]
[388429837,1759167031608,-300.0,0.00016723,2]
[388429838,1759167031618,-250.0,0.00016759,2]
[388429839,1759167031627,-250.0,0.00016789,2]
[388429840,1759167031637,-71.46588268,0.00016794,2]
[388429841,1759167031650,-93.56411732,0.00016794,2]
[388429842,1759167031661,-2407.07330538,0.00016794,2]
[388429843,1759167031673,-966.09033492,0.00016794,2]
[388429844,1759167031684,-691.40426648,0.00016794,2]
[388429845,1759167031697,-1368.50696115,0.00016794,2]
[388429847,1759167031709,-4566.91513207,0.00016794,2]
[388429849,1759167031719,-150.99,0.00016794,2]
[388429851,1759167031729,-433.84738,0.0001683,2]
[388429853,1759167031740,-158.95416968,0.00016886,2]
[388429855,1759167031751,-550.0,0.00016899,2]
[388429857,1759167031761,-590.72692019,0.000169,2]
[388429859,1759167031771,-156.19622201,0.000169,2]
[388429862,1759167031781,-172.64600403,0.000169,2]
[388429864,1759167031791,-1565.37058582,0.000169,2]
[388429866,1759167031803,-300.0,0.000169,2]
[388429869,1759167031815,-503.43040497,0.000169,2]
[388429871,1759167031825,-150.0,0.00016908,2]
[388429873,1759167031837,-868.74299941,0.00016939,2]
[388429877,1759167031866,-18.7649384,0.00016939,2]
[388429878,1759167031876,-433.84738,0.0001695,2]
[388429879,1759167031886,-200.0,0.00016962,2]
[388429880,1759167031896,-151.0,0.00016962,2]
[388429881,1759167031906,-151.0,0.00016962,2]
[388429882,1759167031916,-50.61003496,0.00016962,2]
[388429883,1759167031929,-100.38996504,0.00016962,2]
[388429884,1759167031940,-151.0,0.00016962,2]
[388429885,1759167031950,-151.0,0.00016962,2]
[388429886,1759167031960,-151.0,0.00016962,2]
[388429887,1759167031970,-151.0,0.00016962,2]
[388429888,1759167031981,-151.0,0.00016962,2]
[388429889,1759167031991,-151.0,0.00016962,2]
[388429890,1759167032001,-151.0,0.00016962,2]
[388429891,1759167032012,-71.25348268,0.00016962,2]
[388429898,1759167032095,505.09,0.00015931,2]
[388429952,1759167037367,-79.74651732,0.00016962,2]
[388429953,1759167037377,-151.0,0.00016962,2]
[388429954,1759167037388,-151.0,0.00016962,2]
[388429956,1759167037398,-151.0,0.00016962,2]
[388429957,1759167037408,-151.0,0.00016962,2]
[388429958,1759167037419,-151.0,0.00016962,2]
[388429960,1759167037429,-151.0,0.00016962,2]
[388429961,1759167037439,-151.0,0.00016962,2]
[388429962,1759167037449,-151.0,0.00016962,2]
[388429963,1759167037459,-151.0,0.00016962,2]
[388429965,1759167037469,-151.0,0.00016962,2]
[388429966,1759167037479,-151.0,0.00016962,2]
[388429967,1759167037489,-151.0,0.00016962,2]
[388429969,1759167037499,-151.0,0.00016962,2]
[388429970,1759167037509,-151.0,0.00016962,2]
[388429971,1759167037518,-151.0,0.00016962,2]
[388429973,1759167037528,-151.0,0.00016962,2]
[388429974,1759167037538,-500.0,0.00016972,2]
[388429975,1759167037548,-500.0,0.00016972,2]
[388429977,1759167037558,-212.74424268,0.00016972,2]
[388429978,1759167037568,-4273.349,0.00016972,2]
[388429979,1759167037578,-210.483,0.00016972,2]
[388429980,1759167037589,-580.40454504,0.00016973,2]
[388429981,1759167037599,-500.0,0.00016973,2]
[388429982,1759167037608,-500.0,0.00016973,2]
[388429983,1759167037619,-500.0,0.00016973,2]
[388429984,1759167037629,-500.0,0.00016973,2]
[388429985,1759167037640,-500.0,0.00016973,2]
[388429986,1759167037652,-500.0,0.00016973,2]
[388429987,1759167037662,-500.0,0.00016973,2]
[388429988,1759167037672,-500.0,0.00016973,2]
[388429989,1759167037683,-369.57854038,0.00016973,2]
[388429990,1759167037694,-500.0,0.00016973,2]
[388429991,1759167037704,-500.0,0.00016973,2]
[388429992,1759167037714,-500.0,0.00016973,2]
[388429993,1759167037724,-500.0,0.00016973,2]
[388429994,1759167037734,-500.0,0.00016973,2]
[388429995,1759167037744,-500.0,0.00016973,2]
[388429996,1759167037755,-500.0,0.00016973,2]
[388429997,1759167037765,-500.0,0.00016973,2]
[388429998,1759167037775,-500.0,0.00016973,2]
[388429999,1759167037785,-500.0,0.00016973,2]
[388430000,1759167037795,-500.0,0.00016973,2]
[388430001,1759167037805,-500.0,0.00016973,2]
[388430003,1759167037815,-500.0,0.00016973,2]
[388430005,1759167037825,-500.0,0.00016973,2]
[388430008,1759167037836,-500.0,0.00016973,2]
[388430010,1759167037846,-500.0,0.00016973,2]
[388430012,1759167037856,-500.0,0.00016973,2]
[388430014,1759167037866,-500.0,0.00016973,2]
[388430016,1759167037875,-530.37,0.00016973,2]
[388430018,1759167037885,-500.0,0.00016973,2]
[388430020,1759167037895,-150.0,0.00016973,2]
[388430021,1759167037904,-652.0,0.00016983,2]
[388430023,1759167037914,-500.0,0.00016983,2]
[388430025,1759167037923,-500.0,0.00016983,2]
[388430026,1759167037933,-150.0,0.00016983,2]
[388430028,1759167037942,-500.0,0.00016983,2]
[388430030,1759167037951,-500.0,0.00016983,2]
[388430031,1759167037961,-150.0,0.00016983,2]
[388430033,1759167037971,-500.0,0.00016983,2]
[388430035,1759167037980,-150.0,0.00016983,2]
[388430036,1759167037990,-500.0,0.00016983,2]
[388430038,1759167038000,-500.0,0.00016983,2]
[388430040,1759167038010,-500.0,0.00016983,2]
[388430042,1759167038019,-500.0,0.00016983,2]
[388430044,1759167038029,-500.0,0.00016983,2]
[388430045,1759167038038,-500.0,0.00016983,2]
[388430047,1759167038048,-150.86588004,0.00016983,2]
[388430049,1759167038058,-500.0,0.00016983,2]
[388430051,1759167038068,-434.0,0.00016983,2]
[388430052,1759167038078,-500.0,0.00016983,2]
[388430054,1759167038093,-150.0,0.00016983,2]
[388430056,1759167038103,-150.0,0.00016983,2]
[388430058,1759167038112,-150.0,0.00016983,2]
[388430060,1759167038121,-500.0,0.00016983,2]
[388430061,1759167038133,-150.0,0.00016983,2]
[388430063,1759167038144,-500.0,0.00016983,2]
[388430065,1759167038157,-150.0,0.00016983,2]
[388430067,1759167038167,-769.0,0.00016983,2]
[388430069,1759167038177,-150.0,0.00016983,2]
[388430070,1759167038189,-500.0,0.00016983,2]
[388430072,1759167038199,-150.0,0.00016983,2]
[388430105,1759167038604,-157.21239969,0.00016983,2]
[388430111,1759167038666,-500.0,0.00016983,2]
[388430113,1759167038676,-150.0,0.00016983,2]
[388430115,1759167038687,-500.0,0.00016983,2]
[388430117,1759167038697,-500.0,0.00016983,2]
[388430118,1759167038707,-152.36694031,0.00016983,2]
[388430120,1759167038717,-500.0,0.00016983,2]
[388430121,1759167038727,-151.0,0.00016997,2]
[388430123,1759167038736,-151.0,0.00016997,2]
[388430125,1759167038746,-151.0,0.00016997,2]
[388430127,1759167038756,-151.0,0.00016997,2]
[388430129,1759167038766,-468.51943452,0.00016997,2]
[388430130,1759167038775,-183.81727444,0.00016997,2]
[388430132,1759167038785,-1479.7368361,0.00016998,2]
[388430134,1759167038796,-3465.2772492,0.00016998,2]
[388430136,1759167038805,-14312.2006468,0.00016998,2]
[388430138,1759167038815,-190206.6419656,0.00016998,2]
[388430140,1759167038825,-157.7873608,0.00017,2]
[388430141,1759167038835,-5196.1181608,0.00017,2]
[388430143,1759167038845,-1041.35590643,0.00017,2]
[388430145,1759167038855,-200.0,0.00017,2]
[388430147,1759167038865,-760.47463881,0.00017,2]
[388430149,1759167038875,-402185.49260226,0.00017,2]
[388430151,1759167038888,-452389.12849254,0.00017,2]
[388430153,1759167038900,-362408.53877012,0.00017,2]
[388430155,1759167038912,-323774.76950049,0.00017,2]
[388430160,1759167038966,-3094.0,0.00017,2]
[388430163,1759167038978,-11142.0,0.00017,2]
[388430165,1759167038990,-2150.29444335,0.00017,2]
[388430170,1759167039043,-793.32999998,0.00017,2]
[388430362,1759167041311,-314.98700016,0.00016998,2]
[388430366,1759167041342,-619.09142122,0.00016998,2]
[388430368,1759167041353,-1766.70034299,0.00016998,2]
[388430370,1759167041365,-4617.2,0.00016998,2]
[388430485,1759167042441,-6736.78954272,0.00016998,2]
[388430796,1759167045443,-500.0,0.00016973,2]
[388430797,1759167045453,-3020.91980574,0.00016998,2]
[388430798,1759167045499,-415.57538388,0.00016998,2]
[388430946,1759167065218,250.0,0.00016532,2]
[388430973,1759167105681,13038.85163769,0.000177,30]
[388431002,1759167154120,151.53356775,0.00016596,2]
[388431006,1759167159629,165.16,0.00016319,2]
[388431100,1759167208462,150.0,0.00016247,7]
[388431216,1759167261602,5514.0,0.000132,5]
[388431217,1759167271088,439.57,0.00016274,2]
[388431407,1759167453938,150.0,0.00016184,2]
[388431433,1759167509777,178.69,0.0001616,2]
[388431502,1759167620734,880.32,0.00016104,2]
[388431650,1759167735376,158.46632874,0.00016148,2]
[388431853,1759167846475,1000.0,0.00016438,2]
[388432061,1759167890150,200.0,0.00016125,2]
[388432148,1759167919069,154.59,8.046e-05,2]
[388432160,1759167957493,5262.37,0.00016093,2]
[388432161,1759167962776,500.0,0.00016093,2]
[388432162,1759167970222,167.89,0.00016576,2]
[388432167,1759168032981,1943.36,0.00016064,2]
[388432168,1759168033148,153.28,0.00016064,2]
[388432172,1759168080597,-150.0,0.00028644,120]
[388432173,1759168080628,-150.0,0.00028708,120]
[388432174,1759168081186,-150.0,0.00028731,120]
[388432175,1759168081219,-150.0,0.00028746,120]
[388432176,1759168081252,-150.0,0.00028769,120]
[388432177,1759168081303,-150.0,0.0002895,120]
[388432178,1759168081339,-150.0,0.00028994,120]
[388432179,1759168081373,-650.0,0.00029,120]
[388432180,1759168081407,-1444.0,0.00029041,120]
[388432181,1759168081440,-150.0,0.00029111,120]
[388432182,1759168081472,-150.0,0.00029267,120]
[388432183,1759168081503,-150.0,0.00029308,120]
[388432184,1759168081532,-150.0,0.00029421,120]
[388432185,1759168081563,-150.0,0.00029462,120]
[388432186,1759168081594,-150.0,0.00029545,120]
[388432187,1759168081623,-150.0,0.00029647,120]
[388432188,1759168081653,-150.0,0.00029662,120]
[388432189,1759168081682,-150.0,0.00029847,120]
[388432190,1759168081713,-150.0,0.00029904,120]
[388432191,1759168081742,-150.0,0.00029986,120]
[388432192,1759168081781,-300.0,0.0003,120]
[388432193,1759168081815,-1450.98938877,0.0003,120]
[388432194,1759168081852,-200.0,0.0003,120]
[388432195,1759168081884,-7794.46,0.0003,120]
[388432196,1759168081918,-12800.0,0.0003,120]
[388432197,1759168081954,-35925.61554766,0.0003,120]
[388432198,1759168081987,-474.44399432,0.0003,120]
[388432199,1759168082023,-150.0,0.00030036,120]
[388432200,1759168082058,-150.0,0.00030114,120]
[388432201,1759168082095,-1004.0,0.00030136,120]
[388432202,1759168082132,-502.7339155,0.00030136,120]
[388432203,1759168082174,-500.0,0.00030136,120]
[388432204,1759168082209,-500.0,0.00030136,120]
[388432205,1759168082245,-500.0,0.00030136,120]
[388432206,1759168082288,-500.0,0.00030136,120]
[388432207,1759168082326,-500.0,0.00030136,120]
[388432208,1759168082363,-500.0,0.00030136,120]
[388432209,1759168082399,-500.0,0.00030136,120]
[388432210,1759168082435,-174.32,0.00030136,120]
[388432211,1759168082474,-500.0,0.00030136,120]
[388432212,1759168082510,-500.0,0.00030136,120]
[388432213,1759168082545,-500.0,0.00030136,120]
[388432214,1759168082580,-500.0,0.00030136,120]
[388432215,1759168082616,-500.0,0.00030136,120]
[388432216,1759168082653,-500.0,0.00030136,120]
[388432217,1759168082690,-301.62164418,0.00030136,120]
[388432218,1759168082726,-500.0,0.00030136,120]
[388432219,1759168082763,-500.0,0.00030136,120]
[388432220,1759168082800,-500.0,0.00030136,120]
[388432221,1759168082840,-500.0,0.00030136,120]
[388432222,1759168082884,-336.2692771,0.00030136,120]
[388432223,1759168082923,-500.0,0.00030136,120]
[388432224,1759168082961,-500.0,0.00030136,120]
[388432225,1759168083000,-500.0,0.00030136,120]
[388432226,1759168083044,-500.0,0.00030136,120]
[388432227,1759168083082,-500.0,0.00030136,120]
[388432228,1759168083120,-500.0,0.00030136,120]
[388432229,1759168083158,-500.0,0.00030136,120]
[388432230,1759168083195,-500.0,0.00030136,120]
[388432231,1759168083234,-500.0,0.00030136,120]
[388432232,1759168083274,-500.0,0.00030136,120]
[388432233,1759168083313,-500.0,0.00030136,120]
[388432234,1759168083352,-500.0,0.00030136,120]
[388432235,1759168083389,-243.35,0.00030136,120]
[388432236,1759168083427,-412.9675851,0.00030136,120]
[388432237,1759168083471,-500.0,0.00030136,120]
[388432238,1759168083510,-500.0,0.00030136,120]
[388432239,1759168083548,-500.0,0.00030136,120]
[388432240,1759168083585,-500.0,0.00030136,120]
[388432241,1759168083623,-500.0,0.00030136,120]
[388432242,1759168083662,-500.0,0.00030136,120]
[388432243,1759168083699,-500.0,0.00030136,120]
[388432244,1759168083738,-500.0,0.00030136,120]
[388432245,1759168083774,-500.0,0.00030136,120]
[388432246,1759168083813,-500.0,0.00030136,120]
[388432247,1759168083854,-500.0,0.00030136,120]
[388432248,1759168083891,-500.0,0.00030136,120]
[388432249,1759168083928,-594.77829834,0.00030136,120]
[388432250,1759168083966,-507.6576348,0.00030136,120]
[388432251,1759168084006,-531.0,0.00030136,120]
[388432252,1759168084046,-500.0,0.00030136,120]
[388432253,1759168084086,-500.0,0.00030136,120]
[388432254,1759168084128,-500.0,0.00030136,120]
[388432255,1759168084166,-500.0,0.00030136,120]
[388432256,1759168084203,-511.98850272,0.00030136,120]
[388432257,1759168084242,-500.0,0.00030136,120]
[388432258,1759168084281,-500.0,0.00030136,120]
[388432259,1759168084321,-500.0,0.00030136,120]
[388432260,1759168084359,-500.0,0.00030136,120]
[388432261,1759168084414,-500.0,0.00030136,120]
[388432262,1759168084456,-500.0,0.00030136,120]
[388432263,1759168084496,-500.0,0.00030136,120]
[388432264,1759168084534,-500.0,0.00030136,120]
[388432265,1759168084579,-500.0,0.00030136,120]
[388432266,1759168084617,-596.08605685,0.00030136,120]
[388432267,1759168084662,-500.0,0.00030136,120]
[388432269,1759168085286,-500.0,0.00030136,120]
[388432270,1759168085324,-529.97568151,0.00030136,120]
[388432271,1759168085361,-500.0,0.00030136,120]
[388432272,1759168085397,-500.0,0.00030136,120]
[388432273,1759168085434,-500.0,0.00030136,120]
[388432274,1759168085470,-500.0,0.00030136,120]
[388432275,1759168085507,-500.0,0.00030136,120]
[388432276,1759168085544,-500.0,0.00030136,120]
[388432277,1759168085582,-500.0,0.00030136,120]
[388432278,1759168085619,-500.0,0.00030136,120]
[388432279,1759168085656,-423.2,0.00030136,120]
[388432280,1759168085693,-500.0,0.00030136,120]
[388432281,1759168085730,-500.0,0.00030136,120]
[388432282,1759168085767,-500.0,0.00030136,120]
[388432283,1759168085803,-500.0,0.00030136,120]
[388432284,1759168085843,-500.0,0.00030136,120]
[388432285,1759168085882,-500.0,0.00030136,120]
[388432286,1759168085918,-500.0,0.00030136,120]
[388432287,1759168085955,-500.0,0.00030136,120]
[388432288,1759168085991,-500.0,0.00030136,120]
[388432289,1759168086027,-500.0,0.00030136,120]
[388432290,1759168086064,-500.0,0.00030136,120]
[388432291,1759168086100,-500.0,0.00030136,120]
[388432292,1759168086135,-500.0,0.00030136,120]
[388432293,1759168086172,-174.75,0.00030136,120]
[388432294,1759168086210,-496.99117395,0.00030136,120]
[388432295,1759168086246,-500.0,0.00030136,120]
[388432296,1759168086281,-500.0,0.00030136,120]
[388432297,1759168086319,-500.0,0.00030136,120]
[388432298,1759168086356,-500.0,0.00030136,120]
[388432299,1759168086400,-500.0,0.00030136,120]
[388432300,1759168086439,-512.33553814,0.00030136,120]
[388432301,1759168086478,-523.22899663,0.00030136,120]
[388432302,1759168086516,-500.0,0.00030136,120]
[388432303,1759168086553,-500.0,0.00030136,120]
[388432304,1759168086589,-500.0,0.00030136,120]
[388432305,1759168086626,-500.0,0.00030136,120]
[388432306,1759168086662,-500.0,0.00030136,120]
[388432307,1759168086699,-500.0,0.00030136,120]
[388432308,1759168086736,-500.0,0.00030136,120]
[388432309,1759168086774,-500.0,0.00030136,120]
[388432310,1759168086811,-500.0,0.00030136,120]
[388432311,1759168086853,-500.0,0.00030136,120]
[388432312,1759168086890,-520.192112,0.00030136,120]
[388432313,1759168086930,-500.0,0.00030136,120]
[388432314,1759168086965,-500.0,0.00030136,120]
[388432315,1759168087000,-500.0,0.00030136,120]
[388432316,1759168087035,-552.59,0.00030136,120]
[388432317,1759168087078,-500.0,0.00030136,120]
[388432318,1759168087117,-500.0,0.00030136,120]
[388432319,1759168087153,-500.0,0.00030136,120]
[388432320,1759168087190,-500.0,0.00030136,120]